bitfinex/quotes_ETHUSD_20260111
["timestamp","ask_amount","ask_price","bid_price","bid_amount"]
[1768140344410,0.98767568,3113.5,3112.9,0.253]
[1768140346372,4.19950142,3113.5,3112.9,0.253]
[1768140346675,1.80254382,3113.5,3112.9,0.253]
[1768140347309,0.96747457,3113.5,3112.9,0.253]
[1768140347816,3.23266979,3113.7,3112.9,1.16993426]
[1768140348181,4.20014436,3113.7,3112.9,1.16993426]
[1768140349581,0.02100439,3113.7,3113.0,0.91693426]
[1768140349783,0.00080328,3113.7,3113.0,0.91693426]
[1768140349988,0.00080328,3113.7,3113.1,0.91693426]
[1768140350217,0.00080328,3113.7,3113.1,0.87038422]
[1768140350520,0.00080328,3113.7,3113.1,0.85110416]
[1768140352793,0.002,3113.4,3113.1,0.85110416]
[1768140357218,0.002,3113.4,3112.9,1.16993426]
[1768140359819,0.96947457,3113.4,3112.9,0.253]
[1768140362411,0.002,3113.4,3112.9,4.7290062]
[1768140362642,0.002,3113.4,3113.0,0.9449172]
[1768140365048,0.002,3113.4,3113.0,0.91693426]
[1768140366220,0.002,3113.4,3112.9,0.59965868]
[1768140368454,0.97462816,3113.4,3112.9,0.59965868]
[1768140369416,0.97462816,3113.4,3112.9,0.253]
[1768140374491,0.99482927,3113.4,3112.9,0.253]
[1768140375669,0.97462816,3113.4,3112.9,0.253]
[1768140376546,0.002,3113.1,3112.9,0.253]
[1768140377971,0.97462816,3113.1,3112.7,0.001]
[1768140378171,0.97462816,3113.1,3112.7,0.32237679]
[1768140378472,0.002,3113.1,3112.7,0.001]
[1768140379648,0.97262816,3113.3,3112.7,0.001]
[1768140387179,0.97262816,3113.2,3112.7,0.001]
[1768140387395,0.97062816,3113.2,3112.7,0.001]
[1768140388309,0.97062816,3113.2,3112.4,1.19285061]
[1768140388511,0.97062816,3113.2,3113.0,0.001]
[1768140388709,0.97062816,3113.2,3112.4,4.40580054]
[1768140388887,0.97062816,3113.2,3112.4,1.19285061]
[1768140388888,4.18276437,3113.2,3112.4,1.19285061]
[1768140389205,0.97062816,3113.2,3112.4,4.40578618]
[1768140391210,0.97062816,3113.2,3112.4,1.19285061]
[1768140392410,0.97062816,3113.2,3112.4,5.16778374]
[1768140392614,0.97062816,3113.2,3112.4,1.95483249]
[1768140392918,0.97062816,3113.2,3112.4,5.16778555]
[1768140393820,0.97062816,3113.2,3112.4,1.95483249]
[1768140394015,0.97062816,3113.2,3112.4,5.16777677]
[1768140397116,0.97062816,3113.2,3112.5,0.92680726]
[1768140400303,0.97062816,3113.2,3112.7,0.001]
[1768140400503,0.97062816,3113.2,3112.5,0.92680726]
[1768140409934,0.97062816,3113.2,3112.5,4.13962856]
[1768140410126,0.90771331,3113.4,3112.6,0.92680726]
[1768140411234,4.1196463,3113.4,3112.6,0.92680726]
[1768140411536,4.13984741,3113.4,3112.6,0.92680726]
[1768140412608,4.13984741,3113.4,3112.7,0.001]
[1768140412998,0.02220111,3113.4,3112.7,0.92780726]
[1768140413226,0.02220111,3113.4,3112.8,0.95893267]
[1768140413227,0.002,3113.4,3112.8,0.95893267]
[1768140413653,0.002,3113.4,3112.9,0.92680726]
[1768140414417,0.002,3113.4,3113.0,0.92680726]
[1768140420342,0.002,3113.4,3113.0,4.13913391]
[1768140420511,0.002,3113.4,3113.1,0.92680726]
[1768140420712,0.002,3113.4,3113.1,1.36602065]
[1768140421320,0.002,3113.4,3113.2,0.92680726]
[1768140423813,0.002,3113.4,3113.3,0.9890721]
[1768140424650,0.002,3113.4,3113.2,0.9890721]
[1768140425841,0.002,3113.4,3113.2,4.20118497]
[1768140426138,0.002,3113.4,3113.3,0.46403984]
[1768140440789,0.002,3113.4,3113.3,0.49616009]
[1768140441861,0.002,3113.4,3113.3,0.46403984]
[1768140453515,0.00280328,3113.7,3113.3,1.36829857]
[1768140453694,0.00280328,3113.7,3113.4,0.90425873]
[1768140453890,0.00280328,3113.7,3113.4,1.36229117]
[1768140454210,0.00280328,3113.7,3113.4,0.45803244]
[1768140457092,0.00280328,3113.7,3113.3,4.11365406]
[1768140457298,0.00280328,3113.7,3113.4,1.15469942]
[1768140457785,0.00280328,3113.7,3113.4,0.253]
[1768140463922,0.9526453,3113.7,3113.4,0.253]
[1768140469347,0.00280328,3113.7,3113.4,0.253]
[1768140475246,0.00280328,3113.7,3113.4,0.68968165]
[1768140478350,0.00280328,3113.7,3113.4,0.253]
[1768140484340,0.00280328,3113.7,3113.5,0.93061587]
[1768140484545,0.00280328,3113.7,3113.5,0.81719213]
[1768140485577,0.00280328,3113.7,3113.4,0.253]
[1768140487860,0.00280328,3113.7,3113.4,1.24054253]
[1768140488643,0.00280328,3113.7,3113.5,0.98754253]
[1768140493781,0.00280328,3113.7,3113.4,0.253]
[1768140494386,0.00280328,3113.7,3113.4,1.24054253]
[1768140494579,0.00280328,3113.7,3113.4,1.68580419]
[1768140496664,0.00280328,3113.7,3113.4,0.253]
[1768140499583,0.00280328,3113.7,3113.4,0.0054829]
[1768140499751,0.00280328,3113.7,3113.3,0.253]
[1768140507257,0.002,3113.4,3113.3,0.253]
[1768140524204,0.95063862,3113.4,3113.3,0.253]
[1768140527524,0.00280328,3113.7,3113.3,0.253]
[1768140527730,0.39564837,3113.6,3113.3,0.253]
[1768140529224,0.00280328,3113.7,3113.3,0.253]
[1768140532998,0.00280328,3113.7,3113.3,1.20291584]
[1768140541627,0.002,3113.4,3113.3,1.20291584]
[1768140541906,0.002,3113.4,3113.3,1.64441587]
[1768140554644,0.00280328,3113.7,3113.3,1.64441587]
[1768140554839,0.00280328,3113.7,3113.4,0.98926995]
[1768140556571,0.00280328,3113.7,3113.4,1.95307737]
[1768140557774,0.00280328,3113.7,3113.5,0.98926995]
[1768140563277,0.00280328,3113.7,3113.5,2.66634442]
[1768140569375,0.00280328,3113.7,3113.5,0.98926995]
[1768140570083,0.00280328,3113.7,3113.4,0.96380742]
[1768140577107,0.00280328,3113.7,3113.4,1.96054769]
[1768140584937,0.00280328,3113.7,3113.4,5.17244541]
[1768140585345,0.00280328,3113.7,3113.4,4.20863799]
[1768140585547,0.00280328,3113.7,3113.5,0.39564837]
[1768140598631,0.00280328,3113.7,3113.5,1.39238864]
[1768140599765,0.00280328,3113.7,3113.5,0.39564837]
[1768140603064,0.00280328,3113.7,3113.6,0.94862568]
[1768140603569,0.02020111,3114.2,3113.6,0.94862568]
[1768140606246,3.23130459,3114.2,3113.6,0.94862568]
[1768140607664,3.62695296,3114.2,3113.5,0.39564837]
[1768140607867,0.39564837,3114.1,3113.5,0.39564837]
[1768140608572,3.60686144,3114.1,3113.5,0.39564837]
[1768140609518,0.39564837,3114.1,3113.5,0.39564837]
[1768140610217,3.94049908,3114.2,3113.5,0.39564837]
[1768140610414,0.71523075,3114.1,3113.5,0.39564837]
[1768140611396,0.002,3113.9,3113.5,0.39564837]
[1768140614725,0.39764837,3113.9,3113.3,30.25380336]
[1768140615018,0.39764837,3113.9,3113.3,30.39645173]
[1768140615719,0.02020111,3113.8,3113.3,30.39645173]
[1768140616423,0.02020111,3113.8,3113.3,31.38780767]
[1768140616716,0.002,3113.9,3113.3,31.38780767]
[1768140616918,0.02020111,3113.8,3113.3,30.9921593]
[1768140617286,0.02020111,3113.8,3113.4,0.96386935]
[1768140617820,0.002,3113.9,3113.4,0.96386935]
[1768140618025,0.02020111,3113.8,3113.4,0.96386935]
[1768140618221,0.002,3113.9,3113.4,0.96386935]
[1768140620343,0.002,3113.9,3113.4,1.95522529]
[1768140620527,0.002,3113.9,3113.4,5.16713355]
[1768140620705,0.002,3113.9,3113.4,1.95522529]
[1768140621742,0.002,3113.9,3113.5,0.99135594]
[1768140622142,0.002,3113.9,3113.5,1.95516336]
[1768140623646,0.002,3113.9,3113.7,0.001]
[1768140623804,0.002,3113.9,3113.5,1.95516336]
[1768140624739,0.002,3113.9,3113.6,0.99135594]
[1768140626648,0.002,3113.9,3113.5,0.96380742]
[1768140626808,0.41784948,3113.9,3113.3,30.00080336]
[1768140627137,0.41784948,3113.9,3113.4,0.39645117]
[1768140627649,3.62928232,3113.9,3113.4,0.39645117]
[1768140628212,3.62928232,3113.9,3113.4,2e-08]
[1768140628412,3.62928232,3113.9,3113.3,29.67214857]
[1768140628744,4.31333436,3113.9,3113.3,29.67214857]
[1768140629532,0.70625315,3113.9,3113.3,30.66350451]
[1768140629845,0.02220111,3113.9,3113.3,30.66350451]
[1768140630551,3.23361029,3113.9,3113.3,30.66350451]
[1768140633148,3.23361029,3113.9,3113.4,0.99135594]
[1768140633348,0.39564837,3113.8,3113.3,29.67214857]
[1768140633550,0.02020111,3113.7,3113.3,29.67214857]
[1768140634449,0.02020111,3113.8,3113.4,0.96867973]
[1768140634651,0.002,3113.9,3113.5,0.96867973]
[1768140634815,0.002,3113.9,3113.5,0.95839846]
[1768140635450,0.002,3113.9,3113.7,0.46467973]
[1768140635767,0.002,3113.9,3113.6,0.96967973]
[1768140637337,0.002,3113.9,3113.6,0.86538854]
[1768140637537,0.002,3113.9,3113.4,0.96867973]
[1768140641351,0.002,3113.9,3113.3,30.63599624]
[1768140647078,0.002,3113.9,3113.3,31.60467597]
[1768140647273,0.002,3113.9,3113.6,0.001]
[1768140648362,0.002,3113.9,3113.3,31.60467597]
[1768140659397,0.002,3113.9,3113.6,0.001]
[1768140659584,0.002,3113.9,3113.3,31.60467597]
[1768140659787,0.002,3113.6,3113.3,31.60467597]
[1768140663898,0.002,3113.6,3113.3,30.63599624]
[1768140677523,0.002,3113.6,3113.3,29.67214857]
[1768140699272,0.002,3113.6,3113.3,30.65954042]
[1768140700285,0.002,3113.6,3113.3,33.8715587]
[1768140700469,0.002,3113.6,3113.3,30.65954042]
[1768140702593,0.002,3113.6,3113.3,29.67214857]
[1768140708903,0.002,3113.6,3113.4,0.03211922]
[1768140709786,0.002,3113.6,3113.3,34.8353707]
[1768140714212,0.002,3113.6,3113.4,0.03211922]
[1768140716040,0.002,3113.6,3113.3,34.8353707]
[1768140719740,0.002,3113.6,3113.4,0.03211922]
[1768140719928,0.002,3113.6,3113.4,1.01951107]
[1768140720329,0.002,3113.6,3113.4,1.98329991]
[1768140722046,0.002,3113.9,3113.4,5.19520461]
[1768140723066,0.002,3113.9,3113.4,4.19929655]
[1768140723416,0.002,3113.9,3113.5,0.96373621]
[1768140724044,0.002,3113.9,3113.5,4.17554565]
[1768140725258,0.002,3113.9,3113.5,5.12320781]
[1768140725627,0.002,3113.9,3113.5,4.1594716]
[1768140726152,0.002,3113.9,3113.5,5.06462683]
[1768140727568,0.002,3113.9,3113.6,0.50646268]
[1768140734728,0.002,3114.2,3113.7,0.93433825]
[1768140735813,0.002,3114.2,3113.8,3.21151005]
[1768140736131,0.002,3114.2,3113.9,0.03211406]
[1768140736521,0.002,3114.2,3113.8,3.21151005]
[1768140736717,0.002,3114.2,3113.8,4.14231888]
[1768140737025,0.002,3114.7,3114.0,0.90222212]
[1768140737614,0.002,3114.7,3114.1,0.93161195]
[1768140737797,0.002,3114.7,3114.0,0.90222212]
[1768140737995,0.002,3114.7,3114.1,5.04503473]
[1768140738444,0.002,3114.7,3114.1,4.11342278]
[1768140738735,0.002,3114.7,3114.2,1.3135644]
[1768140739231,0.002,3114.7,3114.2,0.90222212]
[1768140739805,0.002,3114.7,3114.0,0.93161195]
[1768140740006,0.002,3114.7,3114.0,1.83383407]
[1768140740217,0.002,3114.7,3114.0,5.0451038]
[1768140740400,0.002,3114.7,3114.0,1.83383407]
[1768140740599,0.93280883,3114.7,3114.0,1.83383407]
[1768140741003,0.95100994,3114.6,3113.9,0.00080288]
[1768140741815,0.002,3114.2,3113.9,0.00080288]
[1768140742137,0.93280883,3114.2,3113.9,0.00080288]
[1768140747801,0.93280883,3114.2,3113.6,0.253]
[1768140748003,0.93080883,3114.1,3113.6,0.253]
[1768140749545,0.96577955,3114.2,3113.6,0.253]
[1768140749546,0.93080883,3114.0,3113.6,0.253]
[1768140753462,0.93080883,3114.0,3113.9,0.001]
[1768140753662,0.93080883,3114.0,3113.6,0.253]
[1768140754659,0.96577955,3114.2,3113.6,0.253]
[1768140754853,0.96577955,3114.2,3113.7,0.03211613]
[1768140755862,0.96577955,3114.2,3113.6,0.253]
[1768140756060,1.92002479,3114.2,3113.6,0.253]
[1768140759640,0.95424524,3114.1,3113.6,0.253]
[1768140765746,0.95424524,3114.1,3113.9,0.001]
[1768140766076,0.95424524,3114.1,3113.6,0.253]
[1768140766077,0.002,3113.9,3113.6,0.253]
[1768140777986,0.002,3113.9,3113.7,0.03211613]
[1768140780191,0.002,3113.9,3113.6,1.19515807]
[1768140780699,0.002,3113.9,3113.7,0.03211613]
[1768140783092,0.002,3113.9,3113.7,0.9742742]
[1768140783265,0.002,3113.9,3113.7,0.94215807]
[1768140783590,0.002,3113.9,3113.6,0.253]
[1768140786403,0.002,3113.9,3113.6,0.78920106]
[1768140792719,0.002,3113.9,3113.6,0.253]
[1768140818458,0.002,3113.9,3113.6,0.895343]
[1768140827659,0.002,3113.9,3113.6,0.50470565]
[1768140827867,0.002,3113.9,3113.4,0.253]
[1768140828066,0.99230618,3113.9,3113.4,0.253]
[1768140828239,1.31604051,3113.9,3113.4,0.253]
[1768140829357,1.31604051,3113.9,3113.3,29.67214857]
[1768140833696,0.99230618,3113.9,3113.3,29.67214857]
[1768140835811,0.002,3113.6,3113.3,29.67214857]
[1768140854252,0.97361571,3113.6,3113.3,29.67214857]
[1768140855746,0.002,3113.6,3113.3,29.67214857]
[1768140884900,0.98256981,3113.5,3113.3,29.67214857]
[1768140885707,0.002,3113.6,3113.3,29.67214857]
[1768140886286,0.98456981,3113.6,3113.3,29.67214857]
[1768140886483,0.98456981,3113.6,3113.3,26.45632463]
[1768140886687,0.98456981,3113.6,3113.3,23.24050067]
[1768140886890,0.98456981,3113.6,3113.3,20.02470629]
[1768140887089,0.002,3113.6,3113.3,16.80889415]
[1768140887299,0.002,3113.6,3113.3,13.59305635]
[1768140887499,0.002,3113.6,3113.3,10.37721856]
[1768140887706,0.002,3113.6,3113.3,7.16138077]
[1768140888314,0.002,3113.6,3113.3,0.72979125]
[1768140888687,0.002,3113.6,3113.3,0.38916167]
[1768140888917,0.002,3113.6,3113.2,0.253]
[1768140890713,0.98456981,3113.6,3112.7,0.28612644]
[1768140891012,0.98456981,3113.6,3112.7,1.28061817]
[1768140891181,0.98456981,3113.6,3112.8,1.54020677]
[1768140893014,0.98456981,3113.6,3113.0,0.001]
[1768140894126,0.002,3113.6,3113.0,0.99549173]
[1768140901101,0.002,3113.9,3113.3,0.99449173]
[1768140901301,0.002,3114.2,3113.8,0.99449173]
[1768140901529,0.98456981,3114.2,3113.4,0.38148454]
[1768140901855,0.98456981,3114.2,3113.3,0.00080344]
[1768140901856,0.98256981,3114.0,3113.3,0.00080344]
[1768140902031,0.98256981,3113.8,3113.0,0.001]
[1768140902342,0.98256981,3113.6,3113.0,0.001]
[1768140904511,0.002,3113.3,3113.0,0.001]
[1768140914559,0.96022876,3113.2,3113.0,0.001]
[1768140919683,0.002,3113.3,3113.0,0.001]
[1768140927580,0.002,3113.3,3113.0,0.96567715]
[1768140927875,0.002,3113.3,3113.1,0.96467715]
[1768140933346,0.002,3113.3,3113.0,1.41199946]
[1768140934459,0.002,3113.3,3113.0,0.96567715]
[1768140935297,0.97301277,3113.3,3113.0,0.001]
[1768140935583,0.97301277,3113.3,3112.9,0.253]
[1768140936902,0.97101277,3113.2,3112.7,0.001]
[1768140937064,0.97101277,3113.0,3112.5,0.96386626]
[1768140937264,0.97101277,3113.0,3112.4,0.00082668]
[1768140940703,0.97301277,3113.0,3112.4,0.00082668]
[1768140946918,0.97101277,3112.9,3112.4,0.00082668]
[1768140947096,0.97101277,3112.9,3112.3,0.00080288]
[1768140947298,0.41936184,3112.8,3112.3,0.00080288]
[1768140947691,0.00082668,3112.8,3112.3,0.00080288]
[1768140950413,0.97183945,3112.8,3112.3,0.00080288]
[1768140950619,0.97101277,3112.6,3111.7,0.99177609]
[1768140950921,0.97101277,3112.6,3111.7,4.2054331]
[1768140950922,0.97101277,3112.5,3111.7,4.2054331]
[1768140951292,0.97101277,3112.5,3111.7,0.99177609]
[1768140952498,0.97101277,3112.5,3111.7,4.20540221]
[1768140952725,0.97101277,3112.5,3112.0,0.001]
[1768140953495,0.253,3112.6,3112.0,0.99277609]
[1768140954634,0.69884227,3112.6,3112.0,0.99277609]
[1768140962329,0.253,3112.6,3112.0,0.99277609]
[1768140962630,0.00080288,3112.7,3112.1,1.02390873]
[1768140963924,0.00080288,3112.7,3112.3,0.93032443]
[1768140964715,0.002,3112.6,3112.3,0.93032443]
[1768140965931,0.002,3113.0,3112.4,0.93115193]
[1768140968331,0.002,3113.0,3112.4,4.14409771]
[1768140969199,0.002,3113.0,3112.4,4.8798913]
[1768140974252,0.002,3113.0,3112.4,3.94956687]
[1768140974253,0.91146982,3113.0,3112.4,3.94956687]
[1768140974458,0.91146982,3113.0,3112.4,3.21377328]
[1768140974628,0.91146982,3113.0,3112.4,0.0008275]
[1768140977353,0.002,3112.7,3112.4,0.0008275]
[1768140979653,0.002,3112.7,3112.4,0.91993698]
[1768140979853,0.002,3113.0,3112.4,0.91993698]
[1768140983160,0.002,3113.0,3112.4,4.13287501]
[1768140986527,0.002,3113.0,3112.5,0.91910948]
[1768140987238,0.255,3113.0,3112.6,0.91910948]
[1768140988971,0.002,3113.0,3112.7,0.001]
[1768140990569,0.93167093,3113.0,3112.7,0.001]
[1768140990771,0.93167093,3113.0,3112.4,0.0008275]
[1768140996132,0.97936319,3112.8,3112.3,0.00080296]
[1768140996455,1.0003918,3112.8,3112.3,0.00080296]
[1768140996841,0.02102861,3112.8,3112.3,0.00080296]
[1768140997049,0.02102861,3112.8,3112.3,0.96491073]
[1768140997050,0.253,3112.7,3112.3,0.96491073]
[1768140997443,0.253,3112.7,3112.3,0.00080296]
[1768140998771,1.40167145,3112.7,3112.3,0.00080296]
[1768140999348,1.39967146,3112.7,3112.3,0.00080296]
[1768140999793,0.97936319,3112.6,3112.3,0.00080296]
[1768141000872,0.002,3112.5,3112.3,0.00080296]
[1768141004265,0.98136319,3112.5,3112.3,0.00080296]
[1768141006156,0.9793632,3112.5,3112.3,0.00080296]
[1768141006474,0.9793632,3112.5,3112.0,0.001]
[1768141009345,1e-08,3112.5,3112.0,1.28656045]
[1768141009970,1e-08,3112.5,3112.0,4.49989402]
[1768141014083,1e-08,3112.5,3112.3,0.001]
[1768141017084,1e-08,3112.5,3112.1,0.96410777]
[1768141026197,1e-08,3112.5,3112.3,0.001]
[1768141026397,1e-08,3112.5,3112.1,0.96410777]
[1768141029204,1e-08,3112.5,3112.1,4.17733622]
[1768141029377,1e-08,3112.5,3112.1,0.96410777]
[1768141034203,1e-08,3112.5,3112.0,3.2143142]
[1768141034367,1e-08,3112.5,3112.0,4.88415445]
[1768141034900,1e-08,3112.5,3112.1,3.21326131]
[1768141043410,1e-08,3112.5,3112.1,0.93368621]
[1768141044606,1e-08,3112.5,3112.1,4.14691593]
[1768141046016,1e-08,3112.5,3112.2,0.93368621]
[1768141047983,1e-08,3112.5,3112.3,0.93368621]
[1768141048786,0.0028275,3112.8,3112.4,0.93368621]
[1768141048998,0.0028275,3112.8,3112.4,0.88107393]
[1768141056934,0.00082751,3112.8,3112.4,0.88107393]
[1768141057237,0.00082751,3112.8,3112.4,0.88190225]
[1768141060551,0.00082751,3112.8,3112.7,0.001]
[1768141060851,0.00082751,3112.8,3112.4,0.88190225]
[1768141064454,0.90741913,3112.7,3112.4,0.00082832]
[1768141066053,0.90741913,3112.7,3112.4,0.03295786]
[1768141066255,0.90541914,3112.7,3112.4,0.03295786]
[1768141069662,0.00082751,3112.8,3112.4,1.02280577]
[1768141070566,0.00082751,3112.8,3112.4,0.00082832]
[1768141072344,0.00082751,3112.8,3112.7,0.001]
[1768141072534,0.00082751,3112.8,3112.4,0.00082832]
[1768141073469,0.00082751,3112.8,3112.4,1.02280577]
[1768141074372,0.00082751,3112.8,3112.4,0.99067623]
[1768141080779,0.00082751,3112.8,3112.5,0.03212851]
[1768141081898,0.00082751,3112.8,3112.6,0.98984791]
[1768141082460,0.00082751,3112.8,3112.6,4.20259021]
[1768141083973,0.00082751,3112.8,3112.7,0.001]
[1768141091495,0.00082751,3112.8,3112.7,0.92625241]
[1768141091795,0.002,3113.0,3112.7,0.92625241]
[1768141091966,0.002,3113.3,3113.0,0.00167386]
[1768141092174,0.99621914,3113.2,3113.0,0.00167386]
[1768141092409,0.99454528,3113.2,3112.7,0.001]
[1768141092698,0.002,3113.3,3112.7,0.001]
[1768141092908,0.002,3113.3,3112.8,0.92525241]
[1768141093195,0.002,3113.3,3112.7,0.73617614]
[1768141093603,0.002,3113.3,3112.7,1.66142855]
[1768141094373,0.99821914,3113.3,3112.7,0.73617614]
[1768141095100,0.99821914,3113.3,3112.7,0.001]
[1768141096879,0.002,3113.0,3112.7,0.001]
[1768141097080,0.99821914,3113.0,3112.7,0.001]
[1768141101426,0.002,3113.0,3112.7,0.001]
[1768141124450,0.93178004,3112.9,3112.7,0.001]
[1768141124651,0.93016457,3112.9,3112.7,0.001]
[1768141129469,0.002,3113.0,3112.7,0.001]
[1768141138580,0.002,3113.0,3112.8,0.93700448]
[1768141147795,0.002,3113.0,3112.7,0.001]
[1768141154161,0.95143303,3113.0,3112.7,0.001]
[1768141157159,0.002,3113.0,3112.7,0.001]
[1768141195335,1.15112877,3113.3,3112.7,0.001]
[1768141198305,1.58944462,3113.3,3112.7,0.001]
[1768141198527,1.33644462,3113.3,3112.7,0.001]
[1768141198738,1.58944462,3113.3,3112.7,0.001]
[1768141200522,0.002,3113.0,3112.7,0.001]
[1768141212449,0.002,3113.0,3112.7,0.03312644]
[1768141212927,0.002,3113.0,3112.7,0.001]
[1768141213259,0.002,3113.0,3112.7,0.03312644]
[1768141213459,0.002,3113.0,3112.7,0.87522634]
[1768141213655,0.002,3113.0,3112.8,0.92004981]
[1768141214230,0.002,3113.0,3112.7,1.74322867]
[1768141214527,0.002,3113.0,3112.8,3.21254176]
[1768141217943,0.002,3113.0,3112.7,1.74322867]
[1768141218149,0.002,3113.0,3112.7,4.11375557]
[1768141220448,0.002,3113.0,3112.7,5.03380538]
[1768141224378,0.002,3113.0,3112.8,0.92004981]
[1768141224546,0.002,3113.0,3112.8,0.95217522]
[1768141224747,0.002,3113.0,3112.8,1.86904734]
[1768141225114,0.002,3113.3,3113.0,0.00167188]
[1768141225273,0.00032812,3113.3,3113.0,0.03212335]
[1768141225485,0.00032812,3113.3,3113.0,0.86151559]
[1768141227378,0.00032812,3113.3,3113.1,3.21223218]
[1768141232281,0.00032812,3113.3,3113.0,4.0416808]
[1768141234202,0.00032812,3113.3,3113.0,0.82939224]
[1768141234360,0.00032812,3113.3,3113.0,4.04169967]
[1768141234560,0.00032812,3113.3,3113.1,0.40416997]
[1768141239871,0.00032812,3113.3,3113.0,0.83039224]
[1768141241000,0.00032812,3113.3,3113.0,4.04271783]
[1768141241911,0.00032812,3113.3,3113.0,0.83039224]
[1768141242199,0.00032812,3113.3,3113.0,0.001]
[1768141243189,0.00032812,3113.3,3113.0,3.21331567]
[1768141244820,0.00032812,3113.3,3113.0,0.001]
[1768141282139,0.00032812,3113.3,3113.0,0.98822328]
[1768141282556,0.00032812,3113.3,3113.1,1.0193456]
[1768141282857,0.002,3113.6,3113.1,1.0193456]
[1768141283153,0.002,3113.6,3113.2,0.98722328]
[1768141283354,0.002,3113.6,3113.3,0.001]
[1768141291254,0.002,3113.6,3113.3,0.98822328]
[1768141292076,0.002,3113.6,3113.3,1.11673423]
[1768141292734,0.002,3113.6,3113.4,3.21192265]
[1768141292940,0.002,3113.6,3113.3,4.32873603]
[1768141293141,0.002,3113.6,3113.3,0.12951095]
[1768141293856,0.94381733,3113.5,3113.3,0.12951095]
[1768141294236,0.002,3113.6,3113.3,0.12951095]
[1768141300254,0.94581733,3113.6,3113.3,0.12951095]
[1768141307080,0.002,3113.6,3113.3,0.12951095]
[1768141326918,0.94945853,3113.6,3113.3,0.12951095]
[1768141327124,0.002,3113.6,3113.3,0.12951095]
[1768141328626,0.91836954,3113.6,3113.3,0.12951095]
[1768141336135,0.002,3113.6,3113.3,0.12951095]
[1768141344151,0.002,3113.6,3113.3,0.001]
[1768141362789,0.002,3113.6,3113.3,0.939776]
[1768141363083,0.002,3113.6,3113.3,1.77257004]
[1768141363254,0.002,3113.6,3113.4,0.938776]
[1768141363455,0.002,3113.6,3113.4,0.97089522]
[1768141363856,0.002,3113.6,3113.4,4.18280053]
[1768141364466,0.002,3113.6,3113.4,3.24402453]
[1768141364731,0.002,3113.6,3113.3,3.46800273]
[1768141365614,0.002,3113.6,3113.4,6.4559386]
[1768141365787,0.002,3113.6,3113.4,3.24401595]
[1768141366188,0.002,3113.6,3113.4,4.20779241]
[1768141367113,0.002,3113.6,3113.4,7.41971506]
[1768141367309,0.002,3113.6,3113.4,4.17567319]
[1768141367617,0.002,3113.6,3113.5,0.80567146]
[1768141368485,0.002,3113.6,3113.5,4.01749095]
[1768141369709,0.002,3113.6,3113.5,4.04960914]
[1768141369912,0.002,3113.6,3113.5,4.17810895]
[1768141370111,0.97146341,3113.9,3113.5,4.17810895]
[1768141370322,0.97146341,3113.9,3113.6,0.7390025]
[1768141370871,0.97146341,3113.9,3113.5,3.3403193]
[1768141373131,0.97146341,3113.9,3113.5,0.12849981]
[1768141375133,0.002,3113.9,3113.5,0.12849981]
[1768141376927,0.002,3113.9,3113.5,3.34030914]
[1768141382205,0.002,3113.9,3113.5,0.12849981]
[1768141383337,0.002,3113.9,3113.5,3.34030683]
[1768141384335,0.002,3113.9,3113.5,0.12849981]
[1768141386450,0.002,3113.9,3113.5,1.46547873]
[1768141387051,0.002,3113.9,3113.5,0.55659527]
[1768141387851,0.002,3113.9,3113.5,0.12849981]
[1768141389540,0.94591516,3113.9,3113.3,0.00180352]
[1768141389763,0.94591516,3113.9,3113.3,3.21382821]
[1768141389915,0.94591516,3113.9,3113.3,4.17760467]
[1768141390751,0.94591516,3113.9,3113.4,3.21192007]
[1768141390928,0.94591516,3113.9,3113.4,4.05013921]
[1768141391726,0.94591516,3113.9,3113.4,0.83821914]
[1768141394857,0.002,3113.9,3113.4,0.83821914]
[1768141395162,0.002,3113.9,3113.4,3.21191226]
[1768141397660,0.94591516,3113.9,3113.3,0.96557998]
[1768141397836,0.94591516,3113.9,3113.3,4.17759184]
[1768141400446,0.94591516,3113.9,3113.3,0.96557998]
[1768141401654,0.94591516,3113.9,3113.6,0.001]
[1768141403567,1.36182927,3113.9,3113.6,0.001]
[1768141403728,0.96411627,3113.8,3113.3,0.00180352]
[1768141403929,0.94391516,3113.8,3113.3,3.21382834]
[1768141404166,0.002,3113.9,3113.3,3.21382834]
[1768141405054,0.002,3113.9,3113.3,4.1577435]
[1768141405258,0.02220111,3113.9,3113.3,0.94571868]
[1768141406566,0.96611627,3113.9,3113.3,0.94571868]
[1768141408361,0.02220111,3113.9,3113.4,0.9925807]
[1768141408659,0.002,3113.9,3113.5,0.9925807]
[1768141409261,0.002,3113.9,3113.5,1.2455807]
[1768141410948,0.002,3113.9,3113.6,3.21171634]
[1768141417375,0.002,3113.9,3113.6,4.13287429]
[1768141419175,0.002,3113.9,3113.6,4.64087429]
[1768141419671,0.002,3113.9,3113.6,5.54188396]
[1768141420176,0.002,3113.9,3113.7,0.92115795]
[1768141421340,0.002,3113.9,3113.7,4.38775949]
[1768141425198,0.002,3113.9,3113.8,0.92115795]
[1768141425363,0.002,3113.9,3113.8,4.132668]
[1768141425559,0.002,3113.9,3113.8,4.1647831]
[1768141426170,0.00280288,3114.3,3113.8,4.132668]
[1768141426383,1.36804139,3114.4,3113.8,7.47267167]
[1768141426582,0.12849031,3114.5,3113.9,0.92115795]
[1768141426788,0.255,3114.6,3113.9,0.92196091]
[1768141427496,0.002,3114.6,3114.1,0.92115795]
[1768141429400,0.002,3114.6,3114.1,4.13230436]
[1768141429897,0.002,3114.6,3114.1,5.83031762]
[1768141434501,0.002,3114.6,3114.1,4.90915967]
[1768141435917,0.97614744,3114.6,3114.1,0.96357215]
[1768141436074,0.97414744,3114.4,3113.9,0.00080296]
[1768141436273,0.99434855,3114.3,3113.9,0.00080296]
[1768141440504,0.97414744,3114.3,3113.9,0.00080296]
[1768141445007,0.95334711,3114.5,3113.9,0.00080296]
[1768141445211,0.253,3114.4,3113.9,0.00080296]
[1768141446806,0.02220111,3114.6,3113.9,0.94984354]
[1768141447013,0.253,3114.5,3114.0,0.94904058]